[Event "Najdorf Memorial-A 2022"]
[Site "Warsaw"]
[Date "2022.07.14"]
[Round "6.16"]
[White "Zalega, Maciej"]
[Black "Podgorski, Maciej"]
[Result "1/2-1/2"]
[ECO "C58"]
[WhiteElo "1912"]
[BlackElo "1967"]
[Annotator "ChessBase"]
[PlyCount "99"]
[EventDate "2022.07.09"]
[EventType "swiss"]
[EventCountry "POL"]
[SourceTitle "playchess.com"]
[Source "ChessBase"]
[SourceQuality "1"]
[TimeControl "40/5400+30:1800+30"]

1. e4 {[%emt 0:00:10]} e5 {[%emt 0:00:19]} 2. Nf3 {[%emt 0:00:04]} Nc6 {[%emt 0:00:03]} 3. Bc4 {[%emt 0:00:02]} Nf6 {[%emt 0:00:04]} 4. Ng5 {[%emt 0:00:03]} d5 {[%emt 0:00:34]} 5. exd5 {[%emt 0:00:04]} Na5 {[%emt 0:00:03]} 6. Bb5+ {[%emt 0:00:04]} c6 {[%emt 0:00:04]} 7. dxc6 {[%emt 0:00:02]} bxc6 {[%emt 0:00:05]} 8. Bd3 {[%emt 0:00:02]} Nd5 {[%emt 0:00:59]} 9. Nf3 {[%emt 0:00:15]} Bd6 {[%emt 0:04:05]} 10. O-O {[%emt 0:01:02]} O-O {[%emt 0:00:34]} 11. Re1 {[%emt 0:01:46]} f5 {[%emt 0:01:24]} 12. Nxe5 {[%emt 0:08:53]} Qf6 {[%emt 0:00:13]} 13. Nf3 {[%emt 0:00:21]} g5 {[%emt 0:00:24]} 14. g3 {[%emt 0:01:11]} f4 {[%emt 0:06:09]} 15. Nc3 {[%emt 0:00:24]} fxg3 {[%emt 0:15:45]} 16. hxg3 {[%emt 0:00:20]} Qxf3 {[%emt 0:02:00]} 17. Qxf3 {[%emt 0:00:31]} Rxf3 {[%emt 0:00:04]} 18. Be4 {[%emt 0:00:06]} Rf5 {[%emt 0:02:45]} 19. g4 {[%emt 0:17:15]} Rf7 {[%emt 0:12:05]} 20. Nxd5 {[%emt 0:00:13]} cxd5 {[%emt 0:00:03]} 21. Bxd5 {[%emt 0:00:08]} Bb7 {[%emt 0:00:49]} 22. Bxf7+ {[%emt 0:02:32]} Kxf7 {[%emt 0:00:04]} 23. d4 {[%emt 0:01:47]} h5 {[%emt 0:16:48]} 24. Bxg5 hxg4 {[%emt 0:01:31]} 25. d5 {[%emt 0:40:59]} Rh8 {[%emt 0:14:06]} 26. Rad1 {[%emt 0:01:41]} Rh5 {[%emt 0:00:13]} 27. Re6 {[%emt 0:03:45]} Bc5 {[%emt 0:02:10]} 28. Bf4 {[%emt 0:05:46]} Bxd5 {[%emt 0:02:43]} 29. Rh6 {[%emt 0:00:02]} Rxh6 {[%emt 0:06:52]} 30. Bxh6 {[%emt 0:00:02]} Bf3 {[%emt 0:00:49]} 31. Rd3 {[%emt 0:02:17]} Be4 {[%emt 0:01:31]} 32. Rc3 {[%emt 0:01:08]} Bb6 {[%emt 0:00:09]} 33. Be3 {[%emt 0:01:36]} Bxe3 {[%emt 0:01:10]} 34. Rxe3 {[%emt 0:01:30]} Bf3 {[%emt 0:03:44]} 35. Ra3 {[%emt 0:01:25]} Nc6 {[%emt 0:00:10]} 36. Ra6 {[%emt 0:01:37]} Ke7 {[%emt 0:00:34]} 37. c3 {[%emt 0:01:04]} Kd7 {[%emt 0:00:09]} 38. b4 {[%emt 0:02:02]} Be2 {[%emt 0:00:05]} 39. Ra3 {[%emt 0:01:34]} Bc4 {[%emt 0:03:17]} 40. Kg2 {[%emt 0:00:00]} a6 {[%emt 0:00:00]} 41. Kg3 {[%emt 0:04:25]} Ne5 {[%emt 0:01:42]} 42. Ra5 {[%emt 0:01:27]} Nc6 {[%emt 0:04:11]} 43. Rc5 {[%emt 0:03:02]} Bxa2 {[%emt 0:01:06]} 44. Kxg4 {[%emt 0:02:26]} Kd6 {[%emt 0:01:43]} 45. Rh5 {[%emt 0:02:10]} Bc4 {[%emt 0:09:19]} 46. Kf4 {[%emt 0:00:17]} Na7 {[%emt 0:04:19]} 47. Ke3 {[%emt 0:03:35]} Nb5 {[%emt 0:07:04]} 48. Rc5 {[%emt 0:00:37]} Bf1 {[%emt 0:00:59]} 49. c4 {[%emt 0:12:19]} Nc7 {[%emt 0:00:19]} 50. Rxc7 {[%emt 0:06:40]} 1/2-1/2

[Event "Najdorf Memorial-A 2022"]
[Site "Warsaw"]
[Date "2022.07.14"]
[Round "6.16"]
[White "Niezhentsev, Kyrylo"]
[Black "Lewandrowski, Tomasz"]
[Result "1-0"]
[ECO "A30"]
[WhiteElo "1721"]
[BlackElo "1902"]
[Annotator "ChessBase"]
[PlyCount "47"]
[EventDate "2022.07.09"]
[EventType "swiss"]
[EventCountry "POL"]
[SourceTitle "playchess.com"]
[Source "ChessBase"]
[SourceQuality "1"]
[TimeControl "40/5400+30:1800+30"]

1. c4 {[%emt 0:02:14]} c5 {[%emt 0:00:30]} 2. g3 {[%emt 0:00:05]} Nc6 {[%emt 0:00:47]} 3. Bg2 {[%emt 0:00:02]} Nf6 {[%emt 0:01:30]} 4. Nf3 {[%emt 0:00:29]} g6 {[%emt 0:00:24]} 5. O-O {[%emt 0:00:08]} Bg7 {[%emt 0:00:07]} 6. d4 {[%emt 0:00:56]} cxd4 {[%emt 0:01:40]} 7. Nxd4 {[%emt 0:00:02]} O-O {[%emt 0:00:36]} 8. Nc3 {[%emt 0:00:06]} a6 {[%emt 0:01:59]} 9. e3 {[%emt 0:00:50]} Rb8 {[%emt 0:07:08]} 10. a4 {[%emt 0:10:37]} Qc7 {[%emt 0:05:43]} 11. b3 {[%emt 0:03:15]} d6 {[%emt 0:05:59]} 12. Ba3 {[%emt 0:05:06]} Ne5 {[%emt 0:10:13]} 13. Qd2 {[%emt 0:05:13]} Ned7 {[%emt 0:07:37]} 14. Rac1 {[%emt 0:01:59]} Re8 {[%emt 0:04:12]} 15. Nd5 Nxd5 {[%emt 0:00:48]} 16. cxd5 {[%emt 0:07:40]} Qb6 {[%emt 0:01:49]} 17. a5 {[%emt 0:01:29]} Qd8 {[%emt 0:04:16]} 18. Nc6 {[%emt 0:07:51]} bxc6 {[%emt 0:00:37]} 19. dxc6 {[%emt 0:00:01]} Nc5 {[%emt 0:00:37]} 20. Bxc5 {[%emt 0:00:13]} Rxb3 {[%emt 0:02:48]} 21. Bb6 {[%emt 0:00:43]} Rxb6 {[%emt 0:00:07]} 22. c7 {[%emt 0:00:09]} Qd7 {[%emt 0:05:24]} 23. axb6 {[%emt 0:00:13]} d5 {[%emt 0:01:33]} 24. Qxd5 {[%emt 0:00:18]} 1-0

[Event "Najdorf Memorial-A 2022"]
[Site "Warsaw"]
[Date "2022.07.14"]
[Round "6.17"]
[White "Starosciak, Szymon"]
[Black "Mazur, Maciej"]
[Result "1-0"]
[ECO "B01"]
[WhiteElo "1901"]
[BlackElo "1757"]
[Annotator "ChessBase"]
[PlyCount "123"]
[EventDate "2022.07.09"]
[EventType "swiss"]
[EventCountry "POL"]
[SourceTitle "playchess.com"]
[Source "ChessBase"]
[SourceQuality "1"]
[TimeControl "40/5400+30:1800+30"]

1. e4 {[%emt 0:00:04]} d5 {[%emt 0:00:02]} 2. exd5 {[%emt 0:00:20]} Qxd5 {[%emt 0:00:03]} 3. Nc3 {[%emt 0:00:31]} Qa5 {[%emt 0:00:03]} 4. d4 {[%emt 0:02:55]} Nf6 {[%emt 0:00:03]} 5. Nf3 {[%emt 0:09:43]} c6 {[%emt 0:00:02]} 6. Bc4 {[%emt 0:04:23]} Bf5 {[%emt 0:00:08]} 7. O-O {[%emt 0:00:41]} Nbd7 {[%emt 0:01:57]} 8. Bd2 {[%emt 0:00:38]} Qc7 {[%emt 0:01:02]} 9. Re1 {[%emt 0:07:05]} e6 {[%emt 0:02:11]} 10. h3 {[%emt 0:00:45]} Bd6 {[%emt 0:02:38]} 11. Bb3 {[%emt 0:03:55]} O-O {[%emt 0:00:47]} 12. Nh4 {[%emt 0:03:17]} Bg6 {[%emt 0:01:56]} 13. Nxg6 {[%emt 0:00:08]} hxg6 {[%emt 0:06:38]} 14. Ne4 {[%emt 0:01:39]} Bf4 {[%emt 0:02:51]} 15. Bb4 {[%emt 0:06:43]} Rfd8 {[%emt 0:03:22]} 16. Be7 {[%emt 0:01:23]} Re8 {[%emt 0:02:02]} 17. Bxf6 {[%emt 0:00:18]} Nxf6 {[%emt 0:00:32]} 18. Nxf6+ {[%emt 0:00:11]} gxf6 {[%emt 0:00:05]} 19. c3 {[%emt 0:02:13]} Kg7 {[%emt 0:01:02]} 20. Qf3 {[%emt 0:00:47]} Rad8 {[%emt 0:02:33]} 21. Rad1 {[%emt 0:01:34]} a6 {[%emt 0:01:15]} 22. g3 {[%emt 0:02:11]} Bd6 {[%emt 0:00:39]} 23. h4 {[%emt 0:00:36]} Rh8 {[%emt 0:01:05]} 24. Kg2 {[%emt 0:06:50]} Rh5 {[%emt 0:02:02]} 25. Bc2 {[%emt 0:00:39]} f5 {[%emt 0:02:26]} 26. b4 {[%emt 0:04:20]} a5 {[%emt 0:04:52]} 27. a3 {[%emt 0:00:04]} Rdh8 {[%emt 0:04:03]} 28. Rh1 {[%emt 0:01:26]} axb4 {[%emt 0:02:52]} 29. axb4 {[%emt 0:00:11]} b6 {[%emt 0:00:23]} 30. Ba4 {[%emt 0:01:09]} Rc8 {[%emt 0:05:21]} 31. Rd2 {[%emt 0:03:59]} Be7 {[%emt 0:01:21]} 32. Qe3 {[%emt 0:03:29]} f4 {[%emt 0:06:04]} 33. Qf3 {[%emt 0:03:01]} fxg3 {[%emt 0:00:39]} 34. fxg3 {[%emt 0:00:08]} Rf5 {[%emt 0:00:27]} 35. Qg4 {[%emt 0:00:47]} c5 {[%emt 0:03:22]} 36. dxc5 {[%emt 0:05:43]} bxc5 {[%emt 0:00:28]} 37. Rd7 {[%emt 0:01:29]} Qb8 {[%emt 0:05:49]} 38. Bc2 {[%emt 0:01:19]} Rd5 {[%emt 0:05:31]} 39. Rxd5 {[%emt 0:08:24]} exd5 {[%emt 0:00:19]} 40. h5 {[%emt 0:00:00]} Rc6 {[%emt 0:00:00]} 41. hxg6 {[%emt 0:03:09]} fxg6 {[%emt 0:16:21]} 42. Qh3 {[%emt 0:01:49]} Qg8 {[%emt 0:00:43]} 43. Qh6+ {[%emt 0:02:21]} Kf7 {[%emt 0:00:08]} 44. bxc5 {[%emt 0:09:13]} Ke8 {[%emt 0:07:33]} 45. Ba4 {[%emt 0:00:50]} Qe6 {[%emt 0:02:55]} 46. Bxc6+ {[%emt 0:02:21]} Qxc6 {[%emt 0:00:02]} 47. Qh8+ {[%emt 0:03:08]} Kd7 {[%emt 0:00:13]} 48. Qd4 {[%emt 0:01:04]} Bxc5 {[%emt 0:00:49]} 49. Rh7+ {[%emt 0:01:17]} Ke6 {[%emt 0:05:31]} 50. Qg4+ {[%emt 0:00:32]} Ke5 {[%emt 0:01:46]} 51. Qf4+ {[%emt 0:01:30]} Ke6 {[%emt 0:01:05]} 52. Kh2 {[%emt 0:06:54]} Qb5 {[%emt 0:07:26]} 53. Qg4+ {[%emt 0:01:38]} Kf6 {[%emt 0:00:52]} 54. Qf3+ {[%emt 0:00:15]} Ke5 {[%emt 0:01:07]} 55. Rf7 {[%emt 0:01:21]} d4 {[%emt 0:06:03]} 56. Rb7 {[%emt 0:03:55]} Qa5 {[%emt 0:04:18]} 57. Qe2+ {[%emt 0:03:05]} Kf6 {[%emt 0:02:08]} 58. Qf2+ {[%emt 0:02:31]} Ke5 {[%emt 0:01:48]} 59. cxd4+ {[%emt 0:00:30]} Bxd4 {[%emt 0:00:47]} 60. Qf4+ {[%emt 0:00:43]} Ke6 {[%emt 0:03:28]} 61. Qxd4 {[%emt 0:00:37]} Qh5+ {[%emt 0:01:22]} 62. Kg1 {[%emt 0:00:19]} 1-0

[Event "Najdorf Memorial-A 2022"]
[Site "Warsaw"]
[Date "2022.07.14"]
[Round "6.17"]
[White "Siekanska, Zuzanna"]
[Black "Kazmierowski, Tymon"]
[Result "0-1"]
[ECO "E71"]
[WhiteElo "1712"]
[BlackElo "1961"]
[Annotator "ChessBase"]
[PlyCount "68"]
[EventDate "2022.07.09"]
[EventType "swiss"]
[EventCountry "POL"]
[SourceTitle "playchess.com"]
[Source "ChessBase"]
[SourceQuality "1"]
[TimeControl "40/5400+30:1800+30"]

1. d4 {[%emt 0:00:02]} Nf6 {[%emt 0:00:05]} 2. c4 {[%emt 0:00:03]} g6 {[%emt 0:00:04]} 3. Nc3 {[%emt 0:00:03]} Bg7 {[%emt 0:00:04]} 4. e4 {[%emt 0:00:05]} d6 {[%emt 0:00:03]} 5. h3 {[%emt 0:00:04]} O-O {[%emt 0:00:06]} 6. Be3 {[%emt 0:00:04]} Nc6 {[%emt 0:00:04]} 7. Qd2 {[%emt 0:01:37]} e5 {[%emt 0:00:59]} 8. d5 {[%emt 0:00:25]} Nd4 {[%emt 0:00:06]} 9. Bd3 {[%emt 0:05:16]} Qe7 {[%emt 0:03:42]} 10. O-O-O {[%emt 0:03:04]} c6 {[%emt 0:03:07]} 11. Kb1 {[%emt 0:05:10]} cxd5 {[%emt 0:00:57]} 12. cxd5 {[%emt 0:00:16]} Bd7 {[%emt 0:03:01]} 13. Nge2 {[%emt 0:01:13]} Ne8 {[%emt 0:17:08]} 14. h4 {[%emt 0:08:01]} b5 {[%emt 0:07:03]} 15. Ng3 {[%emt 0:08:35]} h5 {[%emt 0:16:07]} 16. Nce2 {[%emt 0:04:35]} Nxe2 {[%emt 0:11:51]} 17. Bxe2 {[%emt 0:05:46]} a5 {[%emt 0:08:56]} 18. Rc1 {[%emt 0:02:10]} Nf6 {[%emt 0:02:23]} 19. Rc7 {[%emt 0:04:15]} Rfb8 {[%emt 0:01:19]} 20. Ba7 {[%emt 0:04:02]} Rc8 {[%emt 0:06:35]} 21. Qxa5 {[%emt 0:07:53]} Nxd5 {[%emt 0:01:23]} 22. Rxc8+ {[%emt 0:01:33]} Bxc8 {[%emt 0:00:16]} 23. exd5 {[%emt 0:00:49]} Rxa7 {[%emt 0:00:06]} 24. Qb6 {[%emt 0:05:54]} Rb7 {[%emt 0:02:40]} 25. Qa5 {[%emt 0:00:12]} Bd7 {[%emt 0:03:03]} 26. Ne4 {[%emt 0:01:12]} Bf5 {[%emt 0:06:08]} 27. Qa8+ {[%emt 0:01:27]} Kh7 {[%emt 0:01:22]} 28. Bd3 {[%emt 0:00:42]} Bxe4 {[%emt 0:00:38]} 29. Bxe4 {[%emt 0:00:01]} f5 {[%emt 0:00:11]} 30. Bc2 {[%emt 0:01:27]} e4 {[%emt 0:00:07]} 31. Ka1 {[%emt 0:05:46]} Qe5 {[%emt 0:01:14]} 32. Rb1 {[%emt 0:00:26]} Rc7 {[%emt 0:00:09]} 33. Bb3 {[%emt 0:01:34]} Qxb2+ {[%emt 0:00:09]} 34. Rxb2 {[%emt 0:00:07]} Rc1# {[%emt 0:00:05]} 0-1

[Event "Najdorf Memorial-A 2022"]
[Site "Warsaw"]
[Date "2022.07.14"]
[Round "6.18"]
[White "Hemmerling, Jaroslaw"]
[Black "Pancewicz, Szymon"]
[Result "0-1"]
[ECO "D02"]
[WhiteElo "1854"]
[BlackElo "1756"]
[Annotator "NA"]
[PlyCount "68"]
[EventDate "2022.07.09"]
[EventType "swiss"]
[EventCountry "POL"]
[SourceTitle "playchess.com"]
[Source "ChessBase"]
[SourceQuality "1"]
[TimeControl "40/5400+30:1800+30"]

1. d4 {[%emt 0:00:03]} d5 {[%emt 0:00:30]} 2. Nf3 {[%emt 0:00:18]} Nf6 {[%emt 0:00:25]} 3. g3 {[%emt 0:00:22]} e6 {[%emt 0:00:12]} 4. Bg2 {[%emt 0:00:12]} Be7 {[%emt 0:02:06]} 5. O-O {[%emt 0:00:10]} O-O {[%emt 0:00:27]} 6. c4 {[%emt 0:03:26]} dxc4 {[%emt 0:03:36]} 7. Qc2 {[%emt 0:02:03]} b5 {[%emt 0:01:12]} 8. a4 {[%emt 0:02:52]} b4 {[%emt 0:00:35]} 9. Nfd2 {[%emt 0:02:09]} Nd5 {[%emt 0:01:29]} 10. Nxc4 {[%emt 0:00:23]} c5 {[%emt 0:05:56]} 11. dxc5 {[%emt 0:01:56]} Bxc5 {[%emt 0:07:42]} 12. e4 {[%emt 0:00:14]} Nb6 {[%emt 0:05:54]} 13. Ncd2 {[%emt 0:00:09]} N8d7 {[%emt 0:06:36]} 14. a5 {[%emt 0:00:37]} Ba6 {[%emt 0:07:06]} 15. axb6 {[%emt 0:00:21]} Bxf1 {[%emt 0:00:41]} 16. b7 {[%emt 0:05:24]} Rb8 {[%emt 0:04:20]} 17. Nxf1 {[%emt 0:02:02]} Rxb7 {[%emt 0:01:38]} 18. Be3 {[%emt 0:15:26]} Rc7 {[%emt 0:03:15]} 19. Qe2 {[%emt 0:00:44]} Qe7 {[%emt 0:03:18]} 20. Nbd2 {[%emt 0:04:51]} Nb6 {[%emt 0:05:39]} 21. Bxc5 {[%emt 0:14:15]} Qxc5 {[%emt 0:00:56]} 22. Ne3 {[%emt 0:00:13]} Rd8 {[%emt 0:04:45]} 23. Nb3 {[%emt 0:09:00]} Qd6 {[%emt 0:02:05]} 24. Rd1 {[%emt 0:05:59]} Qe7 {[%emt 0:01:21]} 25. Rxd8+ {[%emt 0:00:23]} Qxd8 {[%emt 0:00:02]} 26. Qd2 {[%emt 0:00:46]} Qxd2 {[%emt 0:05:48]} 27. Nxd2 {[%emt 0:00:01]} a5 {[%emt 0:00:48]} 28. Bf1 {[%emt 0:06:14]} a4 {[%emt 0:04:33]} 29. Ndc4 {[%emt 0:16:31]} Nxc4 {[%emt 0:00:41]} 30. Bxc4 {[%emt 0:00:01]} b3 {[%emt 0:03:53]} 31. Kf1 {[%emt 0:03:20]} a3 {[%emt 0:05:59]} 32. bxa3 {[%emt 0:00:02]} b2 {[%emt 0:00:30]} 33. Ba2 {[%emt 0:00:02]} Rc1+ {[%emt 0:00:59]} 34. Ke2 {[%emt 0:00:02]} Ra1 {[%emt 0:00:54]} 0-1

[Event "Najdorf Memorial-A 2022"]
[Site "Warsaw"]
[Date "2022.07.14"]
[Round "6.19"]
[White "Pires, Emanuel Joao Robarts"]
[Black "Kowalczyk, Adam"]
[Result "1-0"]
[ECO "B21"]
[WhiteElo "2062"]
[BlackElo "1944"]
[Annotator "ChessBase"]
[PlyCount "83"]
[EventDate "2022.07.09"]
[EventType "swiss"]
[EventCountry "POL"]
[SourceTitle "playchess.com"]
[Source "ChessBase"]
[SourceQuality "1"]
[TimeControl "40/5400+30:1800+30"]

1. e4 {[%emt 0:05:51]} c5 {[%emt 0:00:04]} 2. d4 {[%emt 0:00:05]} cxd4 {[%emt 0:00:05]} 3. c3 {[%emt 0:00:11]} d5 {[%emt 0:00:28]} 4. exd5 {[%emt 0:00:10]} Qxd5 {[%emt 0:00:05]} 5. cxd4 {[%emt 0:00:06]} Nf6 {[%emt 0:00:22]} 6. Nc3 {[%emt 0:00:09]} Qd8 {[%emt 0:00:05]} 7. Nf3 {[%emt 0:00:17]} e6 {[%emt 0:00:05]} 8. Bd3 {[%emt 0:00:20]} Nc6 {[%emt 0:01:02]} 9. O-O {[%emt 0:00:18]} Be7 {[%emt 0:03:08]} 10. a3 {[%emt 0:00:14]} O-O {[%emt 0:02:07]} 11. Bf4 {[%emt 0:00:40]} Nd5 {[%emt 0:15:48]} 12. Bd2 {[%emt 0:00:35]} Bf6 {[%emt 0:01:52]} 13. Qe2 {[%emt 0:03:25]} g6 {[%emt 0:17:40]} 14. Bh6 {[%emt 0:04:46]} Bg7 {[%emt 0:19:19]} 15. Bxg7 {[%emt 0:00:47]} Kxg7 {[%emt 0:00:04]} 16. Rfd1 {[%emt 0:04:01]} Nf4 {[%emt 0:13:21]} 17. Qe3 {[%emt 0:04:11]} Nxd3 {[%emt 0:00:28]} 18. Rxd3 {[%emt 0:00:19]} Ne7 {[%emt 0:00:40]} 19. Rc1 {[%emt 0:03:31]} b6 {[%emt 0:01:50]} 20. Ne5 {[%emt 0:18:25]} Ba6 {[%emt 0:02:29]} 21. Rd2 {[%emt 0:03:06]} Bb7 {[%emt 0:05:27]} 22. Ng4 {[%emt 0:04:11]} Nf5 {[%emt 0:02:53]} 23. Qe5+ {[%emt 0:00:15]} f6 {[%emt 0:00:06]} 24. Qxe6 {[%emt 0:02:49]} Re8 {[%emt 0:06:07]} 25. Qc4 {[%emt 0:01:35]} h5 {[%emt 0:00:51]} 26. Ne3 {[%emt 0:02:10]} Nxe3 {[%emt 0:01:01]} 27. fxe3 {[%emt 0:00:02]} Rxe3 {[%emt 0:00:07]} 28. d5 {[%emt 0:00:41]} Re7 {[%emt 0:05:09]} 29. d6 {[%emt 0:02:59]} Rd7 {[%emt 0:00:01]} 30. Qd4 {[%emt 0:05:47]} Rc8 {[%emt 0:00:56]} 31. Rf1 {[%emt 0:03:17]} Rc5 {[%emt 0:00:10]} 32. Re1 {[%emt 0:03:20]} Rg5 {[%emt 0:01:01]} 33. Re6 {[%emt 0:00:59]} Rf5 {[%emt 0:01:26]} 34. Rde2 {[%emt 0:03:58]} Rf7 {[%emt 0:00:25]} 35. Re7 {[%emt 0:02:22]} Ba6 {[%emt 0:00:14]} 36. g4 {[%emt 0:09:10]} Rg5 {[%emt 0:00:37]} 37. R2e4 {[%emt 0:05:34]} Bb7 {[%emt 0:00:52]} 38. Qc4 {[%emt 0:03:05]} Rxe7 {[%emt 0:00:02]} 39. Rxe7+ {[%emt 0:02:07]} Kh6 {[%emt 0:00:01]} 40. Qf4 {[%emt 0:00:00]} h4 {[%emt 0:00:00]} 41. Rxb7 {[%emt 0:05:18]} Qc8 {[%emt 0:00:28]} 42. Qd4 1-0

[Event "Najdorf Memorial-A 2022"]
[Site "Warsaw"]
[Date "2022.07.15"]
[Round "7.1"]
[White "Sarkar, Justin"]
[Black "Romanishin, Oleg M"]
[Result "1/2-1/2"]
[ECO "C55"]
[WhiteElo "2346"]
[BlackElo "2404"]
[Annotator "ChessBase"]
[PlyCount "46"]
[EventDate "2022.07.09"]
[EventType "swiss"]
[EventCountry "POL"]
[SourceTitle "playchess.com"]
[Source "ChessBase"]
[SourceQuality "1"]
[TimeControl "40/5400+30:1800+30"]

1. e4 {[%emt 0:00:20]} e5 {[%emt 0:00:04]} 2. Nf3 {[%emt 0:00:09]} Nc6 {[%emt 0:00:05]} 3. Bc4 {[%emt 0:00:59]} Nf6 {[%emt 0:00:08]} 4. d3 {[%emt 0:00:09]} Be7 {[%emt 0:00:07]} 5. O-O {[%emt 0:00:16]} O-O {[%emt 0:00:23]} 6. Re1 {[%emt 0:00:23]} d6 {[%emt 0:00:13]} 7. a4 {[%emt 0:00:26]} a5 {[%emt 0:00:11]} 8. c3 {[%emt 0:01:30]} Kh8 {[%emt 0:10:02]} 9. Qb3 {[%emt 0:14:13]} Qe8 {[%emt 0:07:51]} 10. h3 {[%emt 0:08:46]} Nd7 {[%emt 0:18:34]} 11. Be3 {[%emt 0:10:55]} Nc5 {[%emt 0:06:01]} 12. Bxc5 {[%emt 0:00:50]} dxc5 {[%emt 0:00:07]} 13. Nbd2 {[%emt 0:00:11]} Bd6 {[%emt 0:00:31]} 14. Nf1 {[%emt 0:01:46]} Nd8 {[%emt 0:10:54]} 15. Ne3 {[%emt 0:00:52]} c6 {[%emt 0:00:43]} 16. Qb6 {[%emt 0:09:22]} Ne6 {[%emt 0:03:36]} 17. g3 {[%emt 0:08:21]} Bc7 {[%emt 0:03:05]} 18. Qb3 {[%emt 0:00:04]} Rb8 {[%emt 0:00:33]} 19. Qc2 {[%emt 0:02:36]} f6 {[%emt 0:02:48]} 20. Kg2 {[%emt 0:03:54]} Qg6 {[%emt 0:05:36]} 21. Kh2 {[%emt 0:05:08]} Qh5 {[%emt 0:02:33]} 22. Ng1 {[%emt 0:00:19]} Qe8 {[%emt 0:01:36]} 23. Kg2 {[%emt 0:01:59]} Ng5 {[%emt 0:01:38]} 1/2-1/2

[Event "Najdorf Memorial-A 2022"]
[Site "Warsaw"]
[Date "2022.07.15"]
[Round "7.2"]
[White "Pacan-Milej, Kosma"]
[Black "Praczukowski, Stanislaw"]
[Result "1-0"]
[ECO "A13"]
[WhiteElo "2412"]
[BlackElo "2055"]
[Annotator "ChessBase"]
[PlyCount "51"]
[EventDate "2022.07.09"]
[EventType "swiss"]
[EventCountry "POL"]
[SourceTitle "playchess.com"]
[Source "ChessBase"]
[SourceQuality "1"]
[TimeControl "40/5400+30:1800+30"]

1. Nf3 {[%emt 0:00:22]} d5 {[%emt 0:00:55]} 2. c4 {[%emt 0:00:09]} e6 {[%emt 0:01:05]} 3. g3 {[%emt 0:00:46]} Nf6 {[%emt 0:03:37]} 4. Bg2 {[%emt 0:00:22]} d4 {[%emt 0:04:11]} 5. O-O {[%emt 0:00:14]} c5 {[%emt 0:00:38]} 6. e3 {[%emt 0:00:25]} Nc6 {[%emt 0:00:15]} 7. exd4 {[%emt 0:00:05]} cxd4 {[%emt 0:00:09]} 8. d3 {[%emt 0:00:11]} Bd6 {[%emt 0:01:13]} 9. Bg5 {[%emt 0:00:44]} h6 {[%emt 0:01:23]} 10. Bxf6 {[%emt 0:00:13]} Qxf6 {[%emt 0:00:08]} 11. Nbd2 {[%emt 0:00:09]} Qd8 {[%emt 0:08:37]} 12. a3 {[%emt 0:12:18]} a5 {[%emt 0:01:03]} 13. Ne4 {[%emt 0:00:14]} Be7 {[%emt 0:07:09]} 14. c5 {[%emt 0:10:43]} O-O {[%emt 0:11:25]} 15. Nfd2 {[%emt 0:05:12]} f5 {[%emt 0:09:23]} 16. Nd6 {[%emt 0:00:06]} Bxd6 {[%emt 0:00:25]} 17. cxd6 {[%emt 0:00:03]} Qxd6 {[%emt 0:01:12]} 18. Nc4 {[%emt 0:01:58]} Qc7 {[%emt 0:02:18]} 19. Rc1 {[%emt 0:07:33]} Ne5 {[%emt 0:11:05]} 20. Qe2 {[%emt 0:27:03]} Nxc4 {[%emt 0:02:17]} 21. Rxc4 {[%emt 0:00:06]} Qd6 {[%emt 0:01:06]} 22. Re1 {[%emt 0:06:57]} Ra6 {[%emt 0:11:09]} 23. Qe5 {[%emt 0:05:51]} Rd8 {[%emt 0:03:36]} 24. f4 {[%emt 0:01:49]} Rb6 {[%emt 0:05:49]} 25. Qxa5 {[%emt 0:06:24]} Rxb2 {[%emt 0:02:24]} 26. Rec1 {[%emt 0:00:31]} 1-0

[Event "Najdorf Memorial-A 2022"]
[Site "Warsaw"]
[Date "2022.07.15"]
[Round "7.3"]
[White "Noe, Christopher"]
[Black "Jarmula, Lukasz"]
[Result "1/2-1/2"]
[ECO "B07"]
[WhiteElo "2505"]
[BlackElo "2452"]
[Annotator "ChessBase"]
[PlyCount "42"]
[EventDate "2022.07.09"]
[EventType "swiss"]
[EventCountry "POL"]
[SourceTitle "playchess.com"]
[Source "ChessBase"]
[SourceQuality "1"]
[TimeControl "40/5400+30:1800+30"]

1. d4 {[%emt 0:00:04]} d6 {[%emt 0:00:06]} 2. e4 {[%emt 0:00:24]} Nf6 {[%emt 0:00:07]} 3. Nc3 {[%emt 0:00:06]} e5 {[%emt 0:00:04]} 4. Nge2 {[%emt 0:00:25]} exd4 {[%emt 0:00:11]} 5. Nxd4 {[%emt 0:00:05]} Be7 {[%emt 0:00:06]} 6. g3 {[%emt 0:08:18]} Nc6 {[%emt 0:01:37]} 7. Bg2 {[%emt 0:01:14]} Nxd4 {[%emt 0:00:08]} 8. Qxd4 {[%emt 0:00:06]} O-O {[%emt 0:00:15]} 9. O-O {[%emt 0:00:56]} c6 {[%emt 0:01:57]} 10. Bf4 {[%emt 0:06:03]} Be6 {[%emt 0:01:35]} 11. Rad1 {[%emt 0:05:02]} Ne8 {[%emt 0:01:11]} 12. Rfe1 {[%emt 0:09:03]} Bf6 {[%emt 0:05:54]} 13. e5 {[%emt 0:10:43]} dxe5 {[%emt 0:00:58]} 14. Qxd8 {[%emt 0:08:43]} Rxd8 {[%emt 0:02:42]} 15. Rxd8 {[%emt 0:00:06]} Bxd8 {[%emt 0:01:18]} 16. Bxe5 {[%emt 0:00:05]} Nf6 {[%emt 0:00:40]} 17. Bd4 {[%emt 0:09:10]} Bb6 {[%emt 0:05:01]} 18. Bxb6 {[%emt 0:01:29]} axb6 {[%emt 0:00:07]} 19. a4 {[%emt 0:05:11]} Bf5 {[%emt 0:07:09]} 20. Re2 {[%emt 0:08:49]} Rd8 {[%emt 0:01:16]} 21. Kf1 {[%emt 0:00:06]} Kf8 {[%emt 0:07:45]} 1/2-1/2